bitfinex/quotes_BTCUSD_20251207
["timestamp","ask_amount","ask_price","bid_price","bid_amount"]
[1765117721446,0.00011842,88249.0,88248.0,0.54963403]
[1765117721674,0.02220398,88281.0,88274.0,0.01132836]
[1765117721846,0.02220398,88276.0,88275.0,0.03016823]
[1765117722135,0.00148598,88276.0,88275.0,0.03016823]
[1765117722346,0.00195488,88280.0,88275.0,0.03016823]
[1765117722347,0.00195488,88280.0,88279.0,0.22655444]
[1765117723346,0.00195488,88280.0,88276.0,0.0113281]
[1765117723531,0.00195488,88280.0,88279.0,0.01884]
[1765117724086,0.00195488,88280.0,88272.0,0.01132862]
[1765117724087,0.02220398,88273.0,88272.0,0.01132862]
[1765117724264,0.02220398,88273.0,88271.0,0.01884]
[1765117724265,0.02220398,88272.0,88271.0,0.01884]
[1765117724763,0.02220398,88272.0,88270.0,0.24541515]
[1765117724967,0.02220398,88272.0,88270.0,0.01884]
[1765117725178,0.00148598,88272.0,88266.0,0.01132939]
[1765117725385,0.00148598,88272.0,88254.0,0.22661754]
[1765117725386,0.01133041,88258.0,88248.0,0.0113317]
[1765117725607,0.01133041,88258.0,88247.0,0.01884]
[1765117725608,0.02220398,88248.0,88247.0,0.01884]
[1765117726026,0.02220398,88252.0,88249.0,0.01133157]
[1765117726237,0.00148598,88252.0,88249.0,0.01133157]
[1765117726452,0.00148598,88252.0,88247.0,0.03017182]
[1765117726659,0.02220398,88250.0,88249.0,0.01133157]
[1765117726891,0.02220398,88248.0,88247.0,0.03017182]
[1765117727159,0.00148598,88252.0,88249.0,0.01133157]
[1765117727160,0.02220398,88250.0,88249.0,0.01133157]
[1765117727364,0.00148598,88252.0,88247.0,0.03017182]
[1765117727598,0.00148598,88252.0,88237.0,0.23799283]
[1765117727599,0.0474,88248.0,88237.0,0.23799283]
[1765117727807,0.02220398,88238.0,88237.0,0.00039506]
[1765117728205,0.11638398,88238.0,88237.0,0.00039506]
[1765117728379,0.23796421,88249.0,88237.0,0.00039506]
[1765117728380,0.01133157,88249.0,88237.0,0.00039506]
[1765117728582,0.11638398,88238.0,88237.0,0.00039506]
[1765117728788,0.11638398,88238.0,88225.0,0.01133465]
[1765117728789,0.01133388,88231.0,88214.0,0.01133606]
[1765117728970,0.02220398,88217.0,88216.0,0.01133581]
[1765117729337,0.0474,88222.0,88213.0,0.01133619]
[1765117729338,0.02220398,88214.0,88213.0,0.01133619]
[1765117729540,0.0474,88222.0,88208.0,0.01133684]
[1765117729541,0.02220398,88209.0,88208.0,0.01133684]
[1765117729815,0.02220398,88204.0,88200.0,0.01133786]
[1765117730007,0.02220398,88201.0,88200.0,0.01133786]
[1765117730218,0.323,88208.0,88159.0,0.00039]
[1765117730424,0.02220398,88193.0,88191.0,0.01133902]
[1765117730641,0.02220398,88190.0,88188.0,0.01133941]
[1765117730842,0.02220398,88190.0,88189.0,0.0188]
[1765117731060,0.02220398,88190.0,88188.0,0.00011842]
[1765117731061,0.02220398,88189.0,88188.0,0.00011842]
[1765117732127,0.02220398,88189.0,88188.0,0.01145783]
[1765117733151,0.02220398,88200.0,88199.0,0.01133799]
[1765117733455,0.02220398,88198.0,88197.0,0.01133825]
[1765117733633,0.02220398,88197.0,88194.0,0.01133863]
[1765117733839,0.02220398,88189.0,88188.0,0.01145783]
[1765117734602,0.06960398,88190.0,88189.0,0.22678565]
[1765117734789,0.02220398,88190.0,88189.0,0.22678565]
[1765117735351,0.02220398,88190.0,88188.0,0.01145783]
[1765117735352,0.00148598,88197.0,88196.0,0.22676765]
[1765117735729,0.00148598,88197.0,88194.0,0.23810995]
[1765117735908,0.02220398,88195.0,88194.0,0.23810995]
[1765117736131,0.02220398,88195.0,88194.0,0.01133863]
[1765117736314,0.02220398,88193.0,88188.0,0.01145783]
[1765117736539,0.02220398,88189.0,88188.0,0.01145783]
[1765117736805,0.00148598,88193.0,88190.0,0.01133915]
[1765117737271,0.00148598,88193.0,88191.0,0.22678051]
[1765117737532,0.09572,88210.0,88191.0,0.22678051]
[1765117737533,0.02220398,88203.0,88202.0,0.01133761]
[1765117737654,0.02220398,88206.0,88202.0,0.01133761]
[1765117737861,0.02220398,88206.0,88203.0,0.01133748]
[1765117738061,0.323,88218.0,88207.0,0.01133696]
[1765117738062,0.02220398,88208.0,88207.0,0.01133696]
[1765117738501,0.06088,88208.0,88193.0,0.01133876]
[1765117738731,0.06088,88208.0,88173.0,0.03010134]
[1765117738732,0.02220398,88189.0,88173.0,0.03010134]
[1765117738958,0.01133902,88191.0,88174.0,0.01790421]
[1765117739118,0.01134172,88170.0,88159.0,0.01134314]
[1765117739292,0.02220398,88161.0,88159.0,0.00011847]
[1765117739479,0.00148598,88170.0,88167.0,0.01134211]
[1765117739681,0.02220398,88168.0,88167.0,0.22684224]
[1765117740551,0.02220398,88168.0,88162.0,0.01134275]
[1765117740552,0.09572,88194.0,88191.0,0.01133902]
[1765117740753,0.23808839,88203.0,88177.0,0.01134082]
[1765117740754,0.01133966,88186.0,88177.0,0.01134082]
[1765117740883,0.00148598,88186.0,88179.0,0.01134056]
[1765117741080,0.02220398,88180.0,88179.0,0.01134056]
[1765117741287,0.09572,88193.0,88179.0,0.01134056]
[1765117741288,0.09572,88207.0,88194.0,0.01133863]
[1765117741649,0.09572,88207.0,88193.0,0.01133876]
[1765117741650,0.02220398,88194.0,88193.0,0.01133876]
[1765117741887,0.23808066,88206.0,88190.0,0.01133915]
[1765117741888,0.02220398,88192.0,88191.0,0.01133902]
[1765117742064,0.02220398,88192.0,88191.0,0.00011847]
[1765117742299,0.11792398,88192.0,88191.0,0.00011847]
[1765117744772,0.11940996,88192.0,88191.0,1.847e-05]
[1765117745192,0.50493295,88192.0,88191.0,1.847e-05]
[1765117745842,5.50493295,88192.0,88191.0,1.847e-05]
[1765117746248,5.50493295,88192.0,88147.0,0.01134468]
[1765117746249,0.02220398,88158.0,88155.0,0.01134365]
[1765117746419,0.02220398,88158.0,88157.0,0.01714985]
[1765117746618,0.04607,88168.0,88165.0,0.01134236]
[1765117746818,0.02220398,88166.0,88165.0,0.01134236]
[1765117747025,0.323,88171.0,88157.0,0.01714985]
[1765117747026,0.04607,88175.0,88169.0,0.01134185]
[1765117747234,0.04607,88175.0,88172.0,0.01134146]
[1765117747235,0.04755598,88175.0,88172.0,0.01134146]
[1765117747498,0.02220398,88172.0,88170.0,0.01134172]
[1765117747706,0.02220398,88161.0,88160.0,0.01134301]
[1765117748254,0.00148598,88172.0,88165.0,0.01134236]
[1765117748458,0.02220398,88166.0,88165.0,0.01124236]
[1765117748677,0.02368996,88172.0,88169.0,0.01134185]
[1765117748892,0.02368996,88172.0,88166.0,0.23818705]
[1765117748893,0.02368996,88172.0,88166.0,0.01134224]
[1765117749111,0.02368996,88172.0,88160.0,0.23820307]
[1765117749112,0.02220398,88161.0,88160.0,0.01134301]
[1765117750120,0.21,88168.0,88159.0,0.23820532]
[1765117750311,0.02220398,88163.0,88162.0,0.01134275]
[1765117750548,0.02220398,88163.0,88156.0,0.22686829]
[1765117750549,0.02220398,88158.0,88156.0,0.01134352]
[1765117750892,0.02220398,88158.0,88155.0,0.01134365]
[1765117751102,0.02220398,88158.0,88155.0,0.23821668]
[1765117751318,0.17880398,88158.0,88152.0,0.01134404]
[1765117751543,0.17880398,88158.0,88153.0,0.01134391]
[1765117751720,0.17880398,88158.0,88143.0,0.22690305]
[1765117751721,0.19943403,88158.0,88143.0,0.22690305]
[1765117751921,0.19943403,88158.0,88147.0,0.01387624]
[1765117751922,0.17880398,88158.0,88147.0,0.01387624]
[1765117752137,0.17880398,88158.0,88147.0,0.24076775]
[1765117752483,0.17880398,88158.0,88155.0,0.01134365]
[1765117752929,0.30091,88168.0,88161.0,0.01134288]
[1765117753135,0.02220398,88160.0,88159.0,0.01134314]
[1765117753260,0.30091,88168.0,88165.0,0.01134236]
[1765117753466,0.02220398,88165.0,88164.0,0.01134249]
[1765117753827,0.21,88168.0,88165.0,0.01134236]
[1765117754082,0.02220398,88166.0,88165.0,0.01134236]
[1765117754449,0.21,88168.0,88158.0,0.01134327]
[1765117754749,0.02220398,88159.0,88158.0,0.01134327]
[1765117754993,0.02220398,88166.0,88165.0,0.01134236]
[1765117755191,0.21,88168.0,88166.0,0.22684481]
[1765117755621,0.09091,88195.0,88190.0,0.01133915]
[1765117755777,0.02220398,88189.0,88188.0,0.01133941]
[1765117756143,0.02220398,88189.0,88185.0,0.2267943]
[1765117756144,0.02220398,88188.0,88185.0,0.01133979]
[1765117756344,0.066,88186.0,88184.0,0.01133992]
[1765117756540,0.066,88186.0,88182.0,0.01134018]
[1765117756541,0.02220398,88184.0,88182.0,0.01134018]
[1765117756985,0.36109605,88197.0,88191.0,0.01133902]
[1765117756986,0.06562398,88197.0,88191.0,0.01133902]
[1765117757251,0.06562398,88197.0,88169.0,0.00051]
[1765117757252,0.06574228,88197.0,88193.0,0.01133876]
[1765117757484,0.06574228,88197.0,88194.0,0.01133863]
[1765117757485,0.02232228,88197.0,88194.0,0.01133863]
[1765117757800,0.0001183,88197.0,88192.0,0.01133889]
[1765117757998,0.0001183,88197.0,88193.0,0.01133876]
[1765117758238,0.09091,88196.0,88187.0,0.23812897]
[1765117758447,0.09091,88196.0,88181.0,0.2268043]
[1765117758448,0.09091,88196.0,88185.0,0.01133979]
[1765117758694,0.01133928,88189.0,88179.0,0.01134056]
[1765117759000,0.01133928,88189.0,88177.0,0.01134082]
[1765117759001,0.02220398,88178.0,88177.0,0.01134082]
[1765117759216,0.01133953,88187.0,88179.0,0.01134056]
[1765117759217,0.02220398,88180.0,88179.0,0.01134056]
[1765117759388,0.01133979,88185.0,88178.0,0.01134069]
[1765117759389,0.02220398,88179.0,88178.0,0.01134069]
[1765117760552,0.02220398,88186.0,88185.0,0.01133979]
[1765117761100,0.02220398,88192.0,88189.0,0.23812306]
[1765117761298,0.02220398,88195.0,88194.0,0.01133863]
[1765117762196,0.0001183,88197.0,88195.0,0.22677022]
[1765117762599,0.0001183,88197.0,88194.0,0.01133863]
[1765117762803,0.02220398,88175.0,88165.0,0.01134236]
[1765117763010,0.02220398,88175.0,88163.0,0.01134262]
[1765117763011,0.066,88166.0,88163.0,0.01134262]
[1765117763231,0.066,88166.0,88153.0,0.22687602]
[1765117763232,0.01134378,88154.0,88148.0,0.01134455]
[1765117763454,0.01134378,88154.0,88137.0,0.04055286]
[1765117763455,0.06748598,88154.0,88144.0,0.0283763]
[1765117763660,0.02220398,88145.0,88144.0,0.25527615]
[1765117763867,0.01037269,88153.0,88144.0,0.25527615]
[1765117763868,0.02220398,88151.0,88147.0,0.01134468]
[1765117764079,0.02220398,88149.0,88148.0,0.01134455]
[1765117764278,0.02220398,88149.0,88148.0,0.23823568]
[1765117764481,0.02220398,88148.0,88147.0,0.00011862]
[1765117764643,0.03405841,88148.0,88147.0,0.00011862]
[1765117764847,0.02220398,88141.0,88130.0,0.0002]
[1765117765057,0.01134558,88140.0,88130.0,0.0002]
[1765117765254,0.24913888,88131.0,88130.0,0.0002]
[1765117765483,0.35190331,88131.0,88130.0,0.0002]
[1765117766107,0.12496841,88131.0,88130.0,0.0002]
[1765117766430,0.10276443,88131.0,88130.0,0.0002]
[1765117766631,0.03405841,88131.0,88130.0,0.0002]
[1765117766870,0.02368996,88131.0,88130.0,0.0002]
[1765117768939,0.11459996,88131.0,88130.0,0.0002]
[1765117769142,0.12496841,88131.0,88130.0,0.0002]
[1765117769343,0.20894738,88131.0,88130.0,0.0002]
[1765117769547,0.20894738,88131.0,88106.0,0.23834698]
[1765117769548,0.20894738,88131.0,88092.0,0.01135176]
[1765117769549,0.02220398,88103.0,88092.0,0.01135176]
[1765117769754,0.11268,88108.0,88090.0,0.01135202]
[1765117769755,0.02220398,88094.0,88090.0,0.01135202]
[1765117769959,0.066,88091.0,88088.0,0.01135228]
[1765117770165,0.02220398,88101.0,88093.0,0.01135163]
[1765117770380,0.02220398,88094.0,88093.0,0.01135163]
[1765117770603,0.31791396,88105.0,88093.0,0.01135163]
[1765117770604,0.01134919,88112.0,88099.0,0.01135086]
[1765117770800,0.04767999,88150.0,88105.0,0.23834972]
[1765117770801,0.02220398,88106.0,88105.0,0.23834972]
[1765117771000,0.27362351,88128.0,88119.0,0.01134829]
[1765117771001,0.02220398,88124.0,88119.0,0.01134829]
[1765117771219,0.02220398,88120.0,88119.0,0.23831152]
[1765117771584,0.02220398,88120.0,88119.0,0.01134829]
[1765117772021,0.08820398,88120.0,88092.0,0.01703123]
[1765117772250,0.08820398,88120.0,88065.0,0.01703123]
[1765117772251,0.02220398,88119.0,88118.0,0.22696838]
[1765117772573,0.02220398,88110.0,88109.0,0.01134957]
[1765117772785,0.01134932,88111.0,88104.0,0.01135022]
[1765117772995,0.066,88104.0,88100.0,0.00116875]
[1765117773261,0.066,88104.0,88066.0,0.00024761]
[1765117773262,0.2383783,88096.0,88085.0,0.01135267]
[1765117773562,0.2383783,88096.0,88080.0,0.01868]
[1765117773563,0.02368996,88094.0,88080.0,0.24574624]
[1765117773909,0.02368996,88094.0,88082.0,0.22706066]
[1765117774118,0.11459996,88094.0,88083.0,0.01135292]
[1765117774333,0.11459996,88094.0,88087.0,0.01135241]
[1765117774505,0.11459996,88094.0,88069.0,0.01135473]
[1765117774506,0.34163017,88094.0,88069.0,0.01135473]
[1765117774709,0.01135241,88087.0,88080.0,0.01135331]
[1765117774917,0.01135241,88087.0,88075.0,0.01135395]
[1765117774918,0.02220398,88076.0,88075.0,0.23843314]
[1765117775085,0.02220398,88080.0,88079.0,0.01135344]
[1765117775486,0.02220398,88086.0,88084.0,0.01135279]
[1765117775694,0.00148598,88087.0,88084.0,0.01135279]
[1765117775695,0.09091,88085.0,88084.0,0.01135279]
[1765117775896,0.02220398,88082.0,88081.0,0.01135318]
[1765117776060,0.01135151,88094.0,88081.0,0.01135318]
[1765117776061,0.02220398,88088.0,88081.0,0.01135318]
[1765117776262,0.02220398,88090.0,88089.0,0.01135215]
[1765117776460,0.02259797,88090.0,88089.0,0.01135215]
[1765117776721,0.02259797,88090.0,88087.0,0.01135241]
[1765117776722,0.02220398,88088.0,88087.0,0.01135241]
[1765117776925,0.09130399,88090.0,88087.0,0.01135241]
[1765117777153,0.02220398,88088.0,88087.0,0.01135241]
[1765117777357,0.02220398,88089.0,88088.0,0.22704568]
[1765117778608,0.00039399,88090.0,88088.0,0.22704568]
[1765117778832,0.02220398,88089.0,88088.0,0.22704568]
[1765117779045,0.02220398,88087.0,88079.0,0.01135344]
[1765117779250,0.02220398,88087.0,88084.0,0.01135279]
[1765117779722,0.02220398,88089.0,88088.0,0.22704568]
[1765117779963,0.00039399,88090.0,88088.0,0.22704568]
[1765117780137,0.00039399,88090.0,88089.0,0.00113521]
[1765117780576,0.02220398,88088.0,88087.0,0.01135241]
[1765117780745,0.15878997,88090.0,88085.0,0.22705341]
[1765117780746,0.02220398,88087.0,88085.0,0.22705341]
[1765117780943,0.02220398,88087.0,88086.0,0.23840337]
[1765117781150,0.02368996,88087.0,88086.0,0.01135254]
[1765117781328,0.02368996,88087.0,88079.0,0.01135344]
[1765117781329,0.01135254,88086.0,88079.0,0.01135344]
[1765117781534,0.01135344,88079.0,88072.0,0.01135434]
[1765117781787,0.02220398,88074.0,88073.0,0.02472061]
[1765117781993,0.02220398,88074.0,88073.0,0.01868]
[1765117782197,0.00148598,88085.0,88082.0,0.01135305]
[1765117782628,0.00148598,88085.0,88083.0,0.22705856]
[1765117782854,0.00039399,88090.0,88087.0,0.23840066]
[1765117783262,0.00039399,88090.0,88089.0,0.2270431]
[1765117783682,0.02259797,88090.0,88089.0,0.2270431]
[1765117783897,0.02259797,88090.0,88069.0,0.01703123]
[1765117783898,0.16368997,88090.0,88071.0,0.01135447]
[1765117784132,0.16368997,88090.0,88030.0,0.00199998]
[1765117784133,0.02220398,88077.0,88076.0,0.01135383]
[1765117784350,0.01759,88083.0,88080.0,0.01135331]
[1765117784351,0.02220398,88081.0,88080.0,0.01135331]
[1765117785736,0.02220398,88082.0,88081.0,0.22706372]
[1765117786292,0.02220398,88073.0,88060.0,0.0002]
[1765117786517,0.02220398,88072.0,88071.0,0.01135447]
[1765117786955,0.02220398,88072.0,88066.0,0.00014761]
[1765117787290,0.02220398,88075.0,88074.0,0.01135408]
[1765117787410,0.09958,88081.0,88071.0,0.01135447]
[1765117787411,0.02220398,88073.0,88072.0,0.01135434]
[1765117787827,0.09958,88081.0,88080.0,0.01135331]
[1765117787828,0.02220398,88081.0,88080.0,0.01135331]
[1765117788035,0.00039399,88090.0,88089.0,0.2270431]
[1765117788247,0.00039399,88090.0,88089.0,0.2640831]
[1765117788469,0.00039399,88090.0,88089.0,0.2454031]
[1765117788684,0.00039399,88090.0,88079.0,0.01135344]
[1765117788685,0.01135215,88089.0,88079.0,0.01135344]
[1765117788887,0.08299112,88088.0,88084.0,0.01135279]
[1765117789095,0.02220398,88083.0,88082.0,0.01135305]
[1765117789515,0.00039399,88090.0,88082.0,0.01135305]
[1765117789516,0.02220398,88086.0,88085.0,0.01135267]
[1765117789931,0.00039399,88090.0,88087.0,0.01135241]
[1765117789932,0.02220398,88088.0,88087.0,0.01135241]
[1765117791426,0.02220398,88089.0,88088.0,0.22704568]
[1765117793028,0.00039399,88090.0,88088.0,0.22704568]
[1765117793029,0.00039399,88090.0,88088.0,0.24540568]
[1765117793237,0.00039399,88090.0,88089.0,0.02661372]
[1765117793870,0.06262399,88090.0,88089.0,0.00958249]
[1765117794083,0.00039399,88090.0,88089.0,0.2270431]
[1765117794288,0.00039399,88090.0,88081.0,0.01135318]
[1765117794289,0.01135279,88084.0,88078.0,0.01135357]
[1765117794495,0.01135279,88084.0,88076.0,0.03003383]
[1765117794496,0.02220398,88078.0,88076.0,0.03003383]
[1765117794704,0.01135292,88083.0,88076.0,0.01868]
[1765117794705,0.02220398,88077.0,88076.0,0.01868]
[1765117795112,0.02368996,88077.0,88076.0,0.01868]
[1765117795319,0.02368996,88077.0,88066.0,0.00014761]
[1765117795320,0.02220398,88067.0,88066.0,0.00014761]
[1765117795521,0.02220398,88068.0,88066.0,0.00014761]
[1765117795736,0.08446398,88067.0,88066.0,0.00014761]
[1765117795954,0.08446398,88067.0,88060.0,0.0002]
[1765117795955,0.18866578,88067.0,88060.0,0.0002]
[1765117796168,0.18866578,88067.0,88033.0,0.03039747]
[1765117796169,0.01135911,88035.0,88029.0,0.01135989]
[1765117796386,0.01135911,88035.0,88023.0,0.01136066]
[1765117796387,0.02220398,88026.0,88023.0,0.02272132]
[1765117796594,0.02220398,88026.0,88020.0,0.51868]
[1765117796812,0.01136066,88023.0,88020.0,0.5]
[1765117797025,0.01136066,88023.0,88020.0,0.4999]
[1765117797026,0.02220398,88021.0,88020.0,0.4999]
[1765117797236,0.02368996,88021.0,88020.0,0.4999]
[1765117797453,0.12637774,88021.0,88020.0,0.50001859]
[1765117798082,0.12637774,88021.0,88000.0,22.32732878]
[1765117798083,0.01136324,88003.0,88000.0,22.32732878]
[1765117798301,0.02220398,88001.0,88000.0,22.22744741]
[1765117798508,2.47822259,88001.0,88000.0,22.16041741]
[1765117798719,0.50615259,88001.0,88000.0,22.16041741]
[1765117799372,0.44697176,88001.0,88000.0,22.16041741]
[1765117799994,0.01033778,88001.0,88000.0,22.16041741]
[1765117800150,0.09143,88001.0,88000.0,22.16041741]
[1765117800313,0.34090412,88001.0,88000.0,22.16041741]
[1765117800517,0.12392665,88001.0,88000.0,22.16041741]
[1765117800918,1.14624964,88001.0,88000.0,22.16041741]
[1765117801124,0.10172267,88001.0,88000.0,22.16041741]
[1765117801368,0.12392665,88001.0,88000.0,22.16031741]
[1765117801574,0.18643681,88001.0,88000.0,22.16021741]
[1765117801722,0.18643681,88001.0,88000.0,22.16011741]
[1765117801723,0.09143,88001.0,88000.0,22.16011741]
[1765117801929,0.11363398,88001.0,88000.0,22.16011741]
[1765117802805,0.02220398,88001.0,88000.0,22.16011741]
[1765117803331,5.02080865,88001.0,88000.0,20.72723332]
[1765117803619,5.00886025,88001.0,88000.0,20.2670019]
[1765117803811,5.04809546,88001.0,88000.0,20.23735299]
[1765117803983,5.04809546,88001.0,88000.0,20.03237828]
[1765117804186,5.82579546,88001.0,88000.0,19.81997273]
[1765117804387,5.82579546,88001.0,88000.0,19.60895241]
[1765117804616,5.74345834,88001.0,88000.0,19.60895241]
[1765117804819,1.10930412,88001.0,88000.0,19.60895241]
[1765117805030,0.34090412,88001.0,88000.0,19.60895241]
[1765117805204,4.08960014,88001.0,88000.0,19.60895241]
[1765117805389,2.58252711,88001.0,88000.0,19.60895241]
[1765117805880,1.97922711,88001.0,88000.0,19.60895241]
[1765117806195,0.34090412,88001.0,88000.0,19.60895241]
[1765117806408,0.11363398,88001.0,88000.0,19.60895241]
[1765117806614,0.21,88002.0,88000.0,19.60895241]
[1765117806782,0.02220398,88001.0,88000.0,19.60851862]
[1765117806963,0.09052,88001.0,88000.0,19.60851862]
[1765117807329,0.09052,88001.0,88000.0,19.60895241]
[1765117807536,0.11272398,88001.0,88000.0,19.60895241]
[1765117807721,0.21,88002.0,88000.0,19.60895241]
[1765117807864,0.02220398,88005.0,88003.0,0.01136324]
[1765117808074,0.01136208,88012.0,88000.0,19.60851862]
[1765117808075,0.09052,88017.0,88009.0,0.01136247]
[1765117808276,0.09052,88017.0,88010.0,0.01136234]
[1765117808491,0.01136092,88021.0,88013.0,0.01136195]
[1765117808866,0.01136092,88021.0,88006.0,0.22725723]
[1765117808867,0.09052,88023.0,88018.0,0.01136131]
[1765117809076,0.09052,88023.0,88014.0,0.01136182]
[1765117809077,0.01135873,88038.0,88026.0,0.01126027]
[1765117809291,0.02220398,88029.0,88025.0,0.0113604]
[1765117809519,0.2271672,88041.0,88021.0,0.2459385]
[1765117809520,0.01135821,88042.0,88033.0,0.01133924]
[1765117809703,0.01135821,88042.0,88030.0,0.01135976]
[1765117809704,0.02220398,88032.0,88031.0,0.01135963]
[1765117809920,0.02220398,88032.0,88023.0,0.22721277]
[1765117809921,0.01135886,88037.0,88025.0,0.0113604]
[1765117810133,0.11443,88049.0,88015.0,0.01136169]
[1765117810134,0.0113604,88025.0,88015.0,0.01136169]
[1765117810345,0.02220398,88019.0,88016.0,0.01136157]
[1765117810568,0.22719011,88032.0,88013.0,0.01872]
[1765117810569,0.22715233,88047.0,88023.0,0.22721222]
[1765117810805,0.25099999,88090.0,88013.0,0.01872]
[1765117810806,0.01135653,88055.0,88047.0,0.01135757]
[1765117811043,0.0113564,88056.0,88047.0,0.01135757]
[1765117811251,0.0113564,88056.0,88040.0,0.01135847]
[1765117811252,0.02220398,88041.0,88040.0,0.01135847]
[1765117811483,0.02220398,88041.0,87967.0,0.03015606]
[1765117811484,0.01135989,88029.0,88020.0,0.01136105]
[1765117811715,0.02220398,88020.0,88019.0,0.01136118]
[1765117811981,0.02220398,88018.0,88017.0,0.01136144]
[1765117812191,0.02220398,88022.0,88021.0,0.01136092]
[1765117812609,0.06785598,88022.0,88017.0,0.00011863]
[1765117812823,0.02220398,88018.0,88017.0,0.00011863]
[1765117813079,0.02368996,88018.0,88017.0,0.00011863]
[1765117813281,0.08857398,88018.0,88017.0,0.00011863]
[1765117813718,0.01136066,88023.0,88017.0,0.00011863]
[1765117813719,0.0113604,88025.0,88017.0,0.01148007]
[1765117813928,0.02220398,88018.0,88017.0,0.00011863]
[1765117814790,0.08857398,88018.0,88017.0,0.00011863]
[1765117814990,0.02220398,88018.0,88017.0,0.00011863]
[1765117815207,0.01136053,88024.0,88023.0,0.01136066]
[1765117815208,0.02220398,88024.0,88023.0,0.01136066]
[1765117815431,0.05964795,88044.0,88039.0,0.0113586]
[1765117815641,0.02220398,88033.0,88032.0,0.0113595]
[1765117815863,0.27544996,88044.0,88028.0,0.01136002]
[1765117815864,0.02220398,88034.0,88028.0,0.01136002]
[1765117816064,0.02220398,88034.0,88027.0,0.01136015]
[1765117816065,0.02220398,88029.0,88027.0,0.01136015]
[1765117816272,0.22717499,88038.0,88027.0,0.01136015]
[1765117816273,0.0113586,88039.0,88030.0,0.01135976]
[1765117816481,0.00199998,88080.0,88013.0,0.01136195]
[1765117816482,0.01136105,88020.0,88013.0,0.01136195]
[1765117816684,0.0113604,88025.0,88020.0,0.01136105]
[1765117816798,0.02220398,88021.0,88020.0,0.23858213]
[1765117817004,0.24003955,88031.0,88027.0,0.01136015]
[1765117817005,0.01284561,88031.0,88027.0,0.01136015]
[1765117817208,0.323,88041.0,88027.0,0.01136015]
[1765117817209,0.01135898,88036.0,88030.0,0.01135976]
[1765117817407,0.22716937,88041.0,88035.0,0.01135911]
[1765117817408,0.00148598,88041.0,88035.0,0.01135911]
[1765117817668,0.02220398,88039.0,88038.0,0.01135873]
[1765117818093,0.02220398,88039.0,88030.0,0.01135976]
[1765117818094,0.01135924,88034.0,88027.0,0.01136015]
[1765117818324,0.01135924,88034.0,88002.0,0.09478]
[1765117818325,0.02220398,88022.0,88021.0,0.2459385]
[1765117818528,0.02220398,88022.0,88017.0,0.01148007]
[1765117818749,0.02220398,88018.0,88017.0,0.00011863]
[1765117819175,0.08857398,88018.0,88017.0,0.00011863]
[1765117819384,0.09005996,88018.0,88017.0,0.00011863]
[1765117819620,0.12519678,88018.0,88017.0,0.00011863]
[1765117819827,0.02220398,88018.0,88017.0,0.00011863]
[1765117820043,0.23857387,88024.0,88017.0,0.00011863]
[1765117820044,0.22720135,88028.0,88018.0,0.01136131]
[1765117820263,0.03356387,88029.0,88017.0,0.00011863]
[1765117820264,0.01135989,88029.0,88023.0,0.01136066]
[1765117820473,0.01135989,88029.0,88017.0,0.00011863]
[1765117820474,0.02220398,88018.0,88017.0,0.00011863]
[1765117820715,0.02368996,88018.0,88017.0,0.00011863]
[1765117820922,0.41305996,88018.0,88017.0,0.00011863]
[1765117821353,0.41305996,88018.0,88006.0,0.00024786]
[1765117821354,0.63498162,88007.0,88006.0,0.00024786]
[1765117821573,0.63498162,88007.0,88000.0,19.63797999]
[1765117821574,0.40772697,88001.0,88000.0,19.63797999]
[1765117821780,5.64675455,88001.0,88000.0,19.63743838]
[1765117821989,5.71169455,88001.0,88000.0,19.63743838]
[1765117822203,2.18009455,88001.0,88000.0,19.63743838]
[1765117822414,5.71169455,88001.0,88000.0,19.63743838]
[1765117822618,5.71169455,88001.0,88000.0,19.11940168]
[1765117823472,3.96539057,88001.0,88000.0,19.11940168]
[1765117823664,0.74908558,88001.0,88000.0,19.11940168]
[1765117823868,0.01027146,88001.0,88000.0,19.11940168]
[1765117824087,0.22723286,88016.0,88000.0,19.11940168]
[1765117824088,0.01136247,88009.0,88000.0,19.11940168]
[1765117824288,0.22723286,88016.0,88007.0,0.01136273]
[1765117824545,0.23856626,88026.0,88016.0,0.01136157]
[1765117824722,0.06494,88028.0,88011.0,0.01136221]
[1765117824723,0.01136015,88027.0,88021.0,0.01136092]
[1765117824860,0.01136053,88024.0,88018.0,0.01136131]
[1765117825064,0.01136053,88024.0,88012.0,0.22724173]
[1765117825065,0.02220398,88014.0,88011.0,0.01136221]
[1765117825264,0.02220398,88014.0,88012.0,0.22724173]
[1765117825470,0.02220398,88027.0,88026.0,0.01136027]
[1765117825671,0.01135886,88037.0,88024.0,0.01136053]
[1765117825894,0.06494,88041.0,88024.0,0.23857129]
[1765117825895,0.02220398,88025.0,88024.0,0.23857129]
[1765117826337,0.02220398,88035.0,88034.0,0.23854299]
[1765117826549,0.02220398,88031.0,88030.0,0.01135976]
[1765117826752,0.02220398,88046.0,88045.0,0.01135782]
[1765117826877,0.02220398,88047.0,88046.0,0.22715398]
[1765117827073,0.05848576,88061.0,88056.0,0.0113564]
[1765117827074,0.02220398,88057.0,88056.0,0.0113564]
[1765117827305,0.0113555,88063.0,88058.0,0.01135615]
[1765117827509,0.01135589,88060.0,88055.0,0.01135653]
[1765117827716,0.02220398,88058.0,88057.0,0.01135628]
[1765117827912,0.01135563,88062.0,88057.0,0.01135628]
[1765117827913,0.02220398,88062.0,88060.0,0.23847231]
[1765117828127,0.02220398,88061.0,88060.0,0.23847231]
[1765117828357,0.00148598,88062.0,88057.0,0.01135628]
[1765117828558,0.00148598,88062.0,88055.0,0.01135653]
[1765117828559,0.02220398,88055.0,88047.0,0.01135757]
[1765117828785,0.02220398,88048.0,88047.0,0.01135757]
[1765117828986,0.00148598,88055.0,88053.0,0.22713592]
[1765117829193,0.00148598,88055.0,88045.0,0.01135782]
[1765117829404,0.00148598,88055.0,88039.0,0.0113586]
[1765117829405,0.00148598,88046.0,88039.0,0.0113586]
[1765117829619,0.01135782,88045.0,88041.0,0.01135834]
[1765117829827,0.00148598,88045.0,88042.0,0.01135821]
[1765117830043,0.00148598,88045.0,88043.0,0.22716172]
[1765117830044,0.02220398,88044.0,88043.0,0.22716172]
[1765117830246,0.01284393,88044.0,88038.0,0.01135873]
[1765117830458,0.02220398,88041.0,88040.0,0.2385273]
[1765117830661,0.00148598,88044.0,88041.0,0.01135834]
[1765117830662,0.02220398,88042.0,88041.0,0.01135834]
[1765117830974,0.02220398,88043.0,88042.0,0.2271643]
[1765117831394,0.02220398,88043.0,88041.0,0.01135834]
[1765117831395,0.02220398,88051.0,88050.0,0.01135718]
[1765117831613,0.02220398,88059.0,88058.0,0.23847777]
[1765117831832,0.00011815,88063.0,88055.0,0.01135653]
[1765117831833,0.05917576,88061.0,88056.0,0.0113564]
[1765117832042,0.02220398,88057.0,88056.0,0.0113564]
[1765117832259,0.02220398,88050.0,88046.0,0.01135769]
[1765117832459,0.02220398,88043.0,88042.0,0.01135821]
[1765117832667,0.02220398,88043.0,88037.0,0.01872]
[1765117832668,0.02220398,88040.0,88037.0,0.01872]